[Event "Early-Titled-Tuesday-Blitz-April-02-2024"]
[Site "Chess.com"]
[Date "2024.04.02"]
[Round "5"]
[White "Pragmatist237"]
[Black "IsuruAlahakoon"]
[Result "1-0"]
[WhiteElo "2271"]
[BlackElo "2389"]
[TimeControl "180+1"]
[EndTime "8:55:47 PDT"]
[Termination "Pragmatist237 won on time"]

1. c4 {[%clk 0:02:59.8]} 1... e5 {[%clk 0:02:59.1]} 2. g3 {[%clk 0:02:56.3]}
2... Nc6 {[%clk 0:02:59.5]} 3. Bg2 {[%clk 0:02:56.3]} 3... Bc5 {[%clk 0:03:00]}
4. e3 {[%clk 0:02:56.3]} 4... d6 {[%clk 0:03:00.4]} 5. Ne2 {[%clk 0:02:56.7]}
5... a6 {[%clk 0:02:58]} 6. O-O {[%clk 0:02:56.8]} 6... Ba7 {[%clk 0:02:57]} 7.
d4 {[%clk 0:02:56.6]} 7... h5 {[%clk 0:02:55.2]} 8. Nbc3 {[%clk 0:02:40]} 8...
h4 {[%clk 0:02:54.6]} 9. Bxc6+ {[%clk 0:02:21.1]} 9... bxc6 {[%clk 0:02:52.7]}
10. dxe5 {[%clk 0:02:21.4]} 10... Bh3 {[%clk 0:02:31.4]} 11. Re1 {[%clk
0:02:20.9]} 11... dxe5 {[%clk 0:02:32]} 12. Qxd8+ {[%clk 0:02:15.9]} 12... Rxd8
{[%clk 0:02:32.9]} 13. b3 {[%clk 0:02:08]} 13... Nf6 {[%clk 0:02:32.5]} 14. Ba3
{[%clk 0:02:04.9]} 14... Ng4 {[%clk 0:02:31.2]} 15. Rad1 {[%clk 0:01:55.6]}
15... hxg3 {[%clk 0:02:17.7]} 16. Nxg3 {[%clk 0:01:34.9]} 16... Rxd1 {[%clk
0:02:14.9]} 17. Nxd1 {[%clk 0:01:25.5]} 17... g6 {[%clk 0:02:00.2]} 18. c5
{[%clk 0:01:25.8]} 18... f5 {[%clk 0:01:55.6]} 19. b4 {[%clk 0:01:23.6]} 19...
e4 {[%clk 0:01:52.5]} 20. Nb2 {[%clk 0:01:05.6]} 20... Ne5 {[%clk 0:01:50.5]}
21. Rc1 {[%clk 0:00:39.1]} 21... Nf3+ {[%clk 0:01:48.9]} 22. Kh1 {[%clk
0:00:39]} 22... Bg4 {[%clk 0:01:20.8]} 23. Nf1 {[%clk 0:00:38.2]} 23... Ne5
{[%clk 0:01:05]} 24. Nc4 {[%clk 0:00:22.5]} 24... Nd3 {[%clk 0:01:00]} 25. Rc2
{[%clk 0:00:22.8]} 25... Ne1 {[%clk 0:00:37.2]} 26. Rc1 {[%clk 0:00:20.4]} 26...
Nd3 {[%clk 0:00:25.9]} 27. Rc2 {[%clk 0:00:20.4]} 27... Bf3+ {[%clk 0:00:25.6]}
28. Kg1 {[%clk 0:00:20.4]} 28... Ke7 {[%clk 0:00:20.1]} 29. Nb2 {[%clk
0:00:19.3]} 29... Ne5 {[%clk 0:00:10.6]} 30. Na4 {[%clk 0:00:12.1]} 30... Rh5
{[%clk 0:00:07.2]} 31. Bb2 {[%clk 0:00:12.4]} 31... Bd1 {[%clk 0:00:04.5]} 32.
Rd2 {[%clk 0:00:09.7]} 32... Nf3+ {[%clk 0:00:03.2]} 33. Kg2 {[%clk 0:00:10.1]}
33... Nxd2 {[%clk 0:00:03.3]} 34. Nxd2 {[%clk 0:00:09.8]} 34... Bxa4 {[%clk
0:00:04]} 35. Be5 {[%clk 0:00:09.8]} 1-0

[Event "Early-Titled-Tuesday-Blitz-April-02-2024"]
[Site "Chess.com"]
[Date "2024.04.02"]
[Round "5"]
[White "Incognito_Knight"]
[Black "Der_Balak_3Halak"]
[Result "1-0"]
[WhiteElo "2729"]
[BlackElo "2417"]
[TimeControl "180+1"]
[EndTime "8:55:48 PDT"]
[Termination "Incognito_Knight won by checkmate"]

1. e4 {[%clk 0:03:00.9]} 1... c5 {[%clk 0:03:00]} 2. d4 {[%clk 0:03:00.5]} 2...
cxd4 {[%clk 0:02:59.9]} 3. Qxd4 {[%clk 0:03:01.4]} 3... Nc6 {[%clk 0:02:59.7]}
4. Qd3 {[%clk 0:03:02]} 4... e6 {[%clk 0:02:59.8]} 5. Nc3 {[%clk 0:03:01.4]}
5... Bc5 {[%clk 0:02:55.5]} 6. Qg3 {[%clk 0:02:52.4]} 6... Qf6 {[%clk
0:02:51.4]} 7. Nb5 {[%clk 0:02:38.5]} 7... Kf8 {[%clk 0:02:21.6]} 8. c3 {[%clk
0:02:29.7]} 8... a6 {[%clk 0:02:19.1]} 9. Nd6 {[%clk 0:02:23]} 9... h6 {[%clk
0:02:06.9]} 10. Be3 {[%clk 0:02:14.8]} 10... Bxe3 {[%clk 0:01:57.6]} 11. Qxe3
{[%clk 0:02:15.7]} 11... Qe5 {[%clk 0:01:55.2]} 12. O-O-O {[%clk 0:02:09.7]}
12... Nf6 {[%clk 0:01:54.1]} 13. f4 {[%clk 0:01:57.4]} 13... Qa5 {[%clk
0:01:40.6]} 14. Kb1 {[%clk 0:01:56.1]} 14... b5 {[%clk 0:01:31.5]} 15. e5 {[%clk
0:01:26.1]} 15... Nd5 {[%clk 0:01:29.8]} 16. Qc5 {[%clk 0:01:25.6]} 16... Qb6
{[%clk 0:00:57.7]} 17. Rxd5 {[%clk 0:01:20.3]} 17... Qxc5 {[%clk 0:00:44.6]} 18.
Rxc5 {[%clk 0:01:21.2]} 18... Ke7 {[%clk 0:00:44.1]} 19. Nf3 {[%clk 0:01:19.1]}
19... f6 {[%clk 0:00:44]} 20. Be2 {[%clk 0:01:15.4]} 20... Rf8 {[%clk
0:00:44.5]} 21. Rd1 {[%clk 0:01:13.4]} 21... Rb8 {[%clk 0:00:41.9]} 22. Nh4
{[%clk 0:01:06.9]} 22... Kd8 {[%clk 0:00:29]} 23. Ng6 {[%clk 0:01:00]} 23... Rg8
{[%clk 0:00:28.9]} 24. Bf3 {[%clk 0:00:31.1]} 24... Kc7 {[%clk 0:00:22.4]} 25.
Ne7 {[%clk 0:00:22.8]} 25... Rd8 {[%clk 0:00:19]} 26. Nxc6 {[%clk 0:00:19.8]}
26... Kb6 {[%clk 0:00:16.3]} 27. Nxd8 {[%clk 0:00:17]} 27... Kxc5 {[%clk
0:00:17.2]} 28. Nxc8 {[%clk 0:00:15.4]} 28... Rxc8 {[%clk 0:00:16.6]} 29. Rxd7
{[%clk 0:00:15.1]} 29... fxe5 {[%clk 0:00:17.1]} 30. fxe5 {[%clk 0:00:15.7]}
30... g5 {[%clk 0:00:17.9]} 31. Nxe6+ {[%clk 0:00:15.9]} 31... Kb6 {[%clk
0:00:17.5]} 32. Rd6+ {[%clk 0:00:16.4]} 32... Ka7 {[%clk 0:00:17]} 33. Nd4
{[%clk 0:00:13.9]} 33... Rf8 {[%clk 0:00:14.2]} 34. e6 {[%clk 0:00:11.5]} 34...
g4 {[%clk 0:00:14]} 35. Bxg4 {[%clk 0:00:09.9]} 35... h5 {[%clk 0:00:11.8]} 36.
Bxh5 {[%clk 0:00:09.8]} 36... Rf1+ {[%clk 0:00:10.9]} 37. Kc2 {[%clk 0:00:09.9]}
37... Re1 {[%clk 0:00:11.8]} 38. Be2 {[%clk 0:00:09.8]} 38... b4 {[%clk
0:00:09.6]} 39. e7 {[%clk 0:00:09.6]} 39... b3+ {[%clk 0:00:09.5]} 40. axb3
{[%clk 0:00:09.7]} 40... Rxe2+ {[%clk 0:00:07.4]} 41. Nxe2 {[%clk 0:00:09.9]}
41... a5 {[%clk 0:00:08.3]} 42. e8=Q {[%clk 0:00:10.1]} 42... a4 {[%clk
0:00:09.2]} 43. Qe7+ {[%clk 0:00:09.7]} 43... Kb8 {[%clk 0:00:09.2]} 44. Rd8#
{[%clk 0:00:10.6]} 1-0

[Event "Early-Titled-Tuesday-Blitz-April-02-2024"]
[Site "Chess.com"]
[Date "2024.04.02"]
[Round "5"]
[White "Vasily_IM"]
[Black "KarolKacprzak"]
[Result "0-1"]
[WhiteElo "2557"]
[BlackElo "2740"]
[TimeControl "180+1"]
[EndTime "8:55:48 PDT"]
[Termination "KarolKacprzak won by resignation"]

1. d4 {[%clk 0:02:59.2]} 1... Nf6 {[%clk 0:03:00]} 2. c4 {[%clk 0:02:58.3]} 2...
e6 {[%clk 0:03:00.7]} 3. Nc3 {[%clk 0:02:58]} 3... Bb4 {[%clk 0:03:00.3]} 4. Qc2
{[%clk 0:02:57.8]} 4... d6 {[%clk 0:02:56.3]} 5. e4 {[%clk 0:02:56.8]} 5... c5
{[%clk 0:02:24.5]} 6. a3 {[%clk 0:02:45.9]} 6... cxd4 {[%clk 0:02:17.5]} 7. axb4
{[%clk 0:02:44.9]} 7... dxc3 {[%clk 0:02:17.7]} 8. bxc3 {[%clk 0:02:44.1]} 8...
O-O {[%clk 0:02:10.8]} 9. Nf3 {[%clk 0:02:43.4]} 9... e5 {[%clk 0:02:05.9]} 10.
Be2 {[%clk 0:02:38.1]} 10... Be6 {[%clk 0:02:02.8]} 11. O-O {[%clk 0:02:31.4]}
11... Qc7 {[%clk 0:02:01.9]} 12. Nd2 {[%clk 0:02:30]} 12... Nbd7 {[%clk
0:01:56.5]} 13. Qd3 {[%clk 0:02:27.7]} 13... b6 {[%clk 0:01:47.2]} 14. Rd1
{[%clk 0:02:25.3]} 14... Rfd8 {[%clk 0:01:37.1]} 15. Nf1 {[%clk 0:02:22.8]}
15... Nf8 {[%clk 0:01:31.9]} 16. Bg5 {[%clk 0:02:19.8]} 16... Qe7 {[%clk
0:01:32.3]} 17. Ne3 {[%clk 0:02:16.1]} 17... Ng6 {[%clk 0:01:26.3]} 18. Nd5
{[%clk 0:02:09]} 18... Bxd5 {[%clk 0:01:23.6]} 19. cxd5 {[%clk 0:02:08.5]} 19...
Nf4 {[%clk 0:01:16.2]} 20. Qe3 {[%clk 0:02:02.2]} 20... N6xd5 {[%clk 0:00:44.5]}
21. Bxe7 {[%clk 0:01:33]} 21... Nxe3 {[%clk 0:00:44.8]} 22. fxe3 {[%clk
0:01:21.2]} 22... Nxe2+ {[%clk 0:00:45.2]} 23. Kf2 {[%clk 0:01:20.8]} 23... Nxc3
{[%clk 0:00:38.6]} 24. Bxd8 {[%clk 0:01:12.6]} 24... Nxd1+ {[%clk 0:00:38.5]}
25. Rxd1 {[%clk 0:00:51.7]} 25... Rxd8 {[%clk 0:00:39.4]} 26. Rc1 {[%clk
0:00:49.8]} 26... a5 {[%clk 0:00:27.5]} 27. Rc6 {[%clk 0:00:46.6]} 27... Ra8
{[%clk 0:00:21.7]} 28. Rxb6 {[%clk 0:00:40.7]} 28... axb4 {[%clk 0:00:19.9]} 29.
Rxb4 {[%clk 0:00:39.7]} 29... h5 {[%clk 0:00:18.7]} 30. Rb7 {[%clk 0:00:38.2]}
30... Ra6 {[%clk 0:00:12.7]} 31. Rd7 {[%clk 0:00:37.9]} 31... Rc6 {[%clk
0:00:13]} 32. Kf3 {[%clk 0:00:37.8]} 32... g6 {[%clk 0:00:13.2]} 33. g3 {[%clk
0:00:36.5]} 33... Kg7 {[%clk 0:00:13.6]} 34. h3 {[%clk 0:00:36.7]} 34... Kf6
{[%clk 0:00:13.9]} 35. g4 {[%clk 0:00:36.5]} 35... h4 {[%clk 0:00:14.4]} 36. Rd8
{[%clk 0:00:35.6]} 36... g5 {[%clk 0:00:12.2]} 37. Rd7 {[%clk 0:00:35.1]} 37...
Ke6 {[%clk 0:00:11.7]} 38. Rd8 {[%clk 0:00:35.3]} 38... Rc2 {[%clk 0:00:12.2]}
39. Rg8 {[%clk 0:00:33.5]} 39... f6 {[%clk 0:00:12.2]} 40. Re8+ {[%clk
0:00:31.8]} 40... Kf7 {[%clk 0:00:12.2]} 41. Rd8 {[%clk 0:00:31.5]} 41... Ke7
{[%clk 0:00:12.9]} 42. Rh8 {[%clk 0:00:27.7]} 42... Rh2 {[%clk 0:00:13.3]} 43.
Rh7+ {[%clk 0:00:26.9]} 43... Ke6 {[%clk 0:00:12.6]} 44. Ra7 {[%clk 0:00:25.2]}
44... Rxh3+ {[%clk 0:00:12.4]} 45. Ke2 {[%clk 0:00:25.8]} 45... Rg3 {[%clk
0:00:12.9]} 0-1

[Event "Early-Titled-Tuesday-Blitz-April-02-2024"]
[Site "Chess.com"]
[Date "2024.04.02"]
[Round "5"]
[White "MetiForce"]
[Black "MITerryble"]
[Result "0-1"]
[WhiteElo "2883"]
[BlackElo "3000"]
[TimeControl "180+1"]
[EndTime "8:55:51 PDT"]
[Termination "MITerryble won by resignation"]

1. d4 {[%clk 0:02:51.7]} 1... d5 {[%clk 0:02:58.9]} 2. c4 {[%clk 0:02:51.3]}
2... dxc4 {[%clk 0:02:59.7]} 3. Nf3 {[%clk 0:02:51.1]} 3... Nf6 {[%clk
0:03:00.2]} 4. e3 {[%clk 0:02:50.9]} 4... e6 {[%clk 0:03:00.8]} 5. Bxc4 {[%clk
0:02:49.6]} 5... a6 {[%clk 0:03:01.4]} 6. Bd3 {[%clk 0:02:43.7]} 6... c5 {[%clk
0:03:00.6]} 7. O-O {[%clk 0:02:41.7]} 7... Nc6 {[%clk 0:03:00.5]} 8. Nc3 {[%clk
0:02:40.2]} 8... Be7 {[%clk 0:02:57.4]} 9. Qe2 {[%clk 0:02:38.8]} 9... O-O
{[%clk 0:02:57.4]} 10. dxc5 {[%clk 0:02:33.7]} 10... Bxc5 {[%clk 0:02:56.6]} 11.
a3 {[%clk 0:02:31.7]} 11... Bd6 {[%clk 0:02:46.1]} 12. b4 {[%clk 0:02:29.1]}
12... Ne5 {[%clk 0:02:39.7]} 13. Rd1 {[%clk 0:02:16.5]} 13... Qc7 {[%clk
0:02:27.3]} 14. Bb2 {[%clk 0:02:14.7]} 14... Nxf3+ {[%clk 0:02:26.1]} 15. Qxf3
{[%clk 0:02:15]} 15... Bxh2+ {[%clk 0:02:26.6]} 16. Kh1 {[%clk 0:02:11.5]} 16...
Be5 {[%clk 0:02:27.5]} 17. Rac1 {[%clk 0:02:11.8]} 17... Qe7 {[%clk 0:02:25.1]}
18. Rc2 {[%clk 0:01:28.9]} 18... Rb8 {[%clk 0:02:17.8]} 19. Na4 {[%clk
0:01:21.1]} 19... Bxb2 {[%clk 0:02:15.2]} 20. Rxb2 {[%clk 0:01:22]} 20... Bd7
{[%clk 0:02:13.7]} 21. Nc5 {[%clk 0:01:21.3]} 21... Bc6 {[%clk 0:02:14]} 22. Qh3
{[%clk 0:01:21.4]} 22... Rfd8 {[%clk 0:02:08.2]} 23. Rbd2 {[%clk 0:01:21.5]}
23... h6 {[%clk 0:02:02.5]} 24. Qh4 {[%clk 0:01:12.3]} 24... Rd5 {[%clk
0:01:59.7]} 25. Be2 {[%clk 0:00:53.8]} 25... Rxd2 {[%clk 0:01:49.2]} 26. Rxd2
{[%clk 0:00:53.7]} 26... Rd8 {[%clk 0:01:49.8]} 27. Rxd8+ {[%clk 0:00:27.9]}
27... Qxd8 {[%clk 0:01:50.7]} 28. Bf3 {[%clk 0:00:22.2]} 28... Bxf3 {[%clk
0:01:45.3]} 29. gxf3 {[%clk 0:00:23.1]} 29... Qd5 {[%clk 0:01:45.2]} 30. Kg2
{[%clk 0:00:22]} 30... a5 {[%clk 0:01:32.9]} 31. Qg3 {[%clk 0:00:18.2]} 31...
axb4 {[%clk 0:01:23.3]} 32. axb4 {[%clk 0:00:19.1]} 32... Nd7 {[%clk 0:01:07.6]}
33. Ne4 {[%clk 0:00:17.7]} 33... Qe5 {[%clk 0:00:57.6]} 34. Qh4 {[%clk 0:00:14]}
34... Nf6 {[%clk 0:00:54.2]} 35. Nxf6+ {[%clk 0:00:10.7]} 35... Qxf6 {[%clk
0:00:52.8]} 36. Qc4 {[%clk 0:00:11]} 36... Qg5+ {[%clk 0:00:49.2]} 37. Kf1
{[%clk 0:00:10.8]} 37... b5 {[%clk 0:00:48.1]} 38. Qc6 {[%clk 0:00:09.9]} 38...
Qf5 {[%clk 0:00:43.3]} 39. Kg2 {[%clk 0:00:07.8]} 39... Kh7 {[%clk 0:00:43.6]}
40. Qd7 {[%clk 0:00:07.1]} 40... Kg6 {[%clk 0:00:41.5]} 41. Qc6 {[%clk
0:00:05.4]} 41... h5 {[%clk 0:00:38.3]} 42. f4 {[%clk 0:00:03.2]} 42... Qd5+
{[%clk 0:00:37.8]} 43. Qxd5 {[%clk 0:00:02.5]} 43... exd5 {[%clk 0:00:38.7]} 44.
Kf3 {[%clk 0:00:03.2]} 44... Kf5 {[%clk 0:00:36.9]} 45. Kg3 {[%clk 0:00:03.8]}
45... f6 {[%clk 0:00:34.8]} 46. f3 {[%clk 0:00:03.8]} 46... g5 {[%clk
0:00:34.4]} 47. fxg5 {[%clk 0:00:04]} 47... fxg5 {[%clk 0:00:35.3]} 48. Kh3
{[%clk 0:00:04.5]} 48... g4+ {[%clk 0:00:32.6]} 49. Kg3 {[%clk 0:00:04.5]} 49...
gxf3 {[%clk 0:00:33.1]} 0-1

[Event "Early-Titled-Tuesday-Blitz-April-02-2024"]
[Site "Chess.com"]
[Date "2024.04.02"]
[Round "5"]
[White "GMthekingindian"]
[Black "LiadCuba"]
[Result "1-0"]
[WhiteElo "2236"]
[BlackElo "2539"]
[TimeControl "180+1"]
[EndTime "8:55:51 PDT"]
[Termination "GMthekingindian won on time"]

1. e4 {[%clk 0:03:00.9]} 1... c5 {[%clk 0:02:57.6]} 2. Nf3 {[%clk 0:03:00.9]}
2... d6 {[%clk 0:02:57.8]} 3. c3 {[%clk 0:03:01.4]} 3... Nf6 {[%clk 0:02:57.8]}
4. Be2 {[%clk 0:03:01.8]} 4... Nbd7 {[%clk 0:02:56]} 5. d3 {[%clk 0:02:58.6]}
5... e6 {[%clk 0:02:53.9]} 6. O-O {[%clk 0:02:57.6]} 6... Be7 {[%clk 0:02:54.5]}
7. Re1 {[%clk 0:02:54.3]} 7... O-O {[%clk 0:02:54.7]} 8. h3 {[%clk 0:02:54.6]}
8... b5 {[%clk 0:02:55.1]} 9. a4 {[%clk 0:02:54.2]} 9... bxa4 {[%clk 0:02:52.8]}
10. Qxa4 {[%clk 0:02:39.2]} 10... Bb7 {[%clk 0:02:53.7]} 11. Bf4 {[%clk
0:02:27.2]} 11... Qc7 {[%clk 0:02:49.5]} 12. Na3 {[%clk 0:02:24]} 12... Bc6
{[%clk 0:02:48.3]} 13. Qc2 {[%clk 0:02:13.8]} 13... Rfb8 {[%clk 0:02:38.5]} 14.
Nc4 {[%clk 0:02:09.3]} 14... e5 {[%clk 0:02:36.9]} 15. Bh2 {[%clk 0:01:50.8]}
15... a5 {[%clk 0:02:17.4]} 16. Bf1 {[%clk 0:01:34]} 16... a4 {[%clk 0:02:16]}
17. d4 {[%clk 0:01:33.5]} 17... cxd4 {[%clk 0:02:11]} 18. cxd4 {[%clk
0:01:33.4]} 18... Rc8 {[%clk 0:01:42.5]} 19. dxe5 {[%clk 0:01:12.9]} 19... dxe5
{[%clk 0:01:43.4]} 20. Ncxe5 {[%clk 0:01:03.8]} 20... Nxe5 {[%clk 0:01:32.4]}
21. Nxe5 {[%clk 0:00:40.5]} 21... Qb7 {[%clk 0:00:42]} 22. Bc4 {[%clk
0:00:35.5]} 22... Bxe4 {[%clk 0:00:28.6]} 23. Bxf7+ {[%clk 0:00:31.3]} 23... Kh8
{[%clk 0:00:22.9]} 24. Bc4 {[%clk 0:00:25]} 24... Rf8 {[%clk 0:00:13.7]} 25. Qe2
{[%clk 0:00:16.9]} 25... Bxg2 {[%clk 0:00:13.5]} 26. Nf7+ {[%clk 0:00:10.5]}
26... Rxf7 {[%clk 0:00:13.7]} 27. Bxf7 {[%clk 0:00:11.2]} 27... Bxh3 {[%clk
0:00:13.7]} 28. f3 {[%clk 0:00:10.8]} 28... Bc5+ {[%clk 0:00:14.1]} 29. Kh1
{[%clk 0:00:10.6]} 29... Qxf7 {[%clk 0:00:14.6]} 30. Be5 {[%clk 0:00:05.4]}
30... Bf5 {[%clk 0:00:10.3]} 31. Qh2 {[%clk 0:00:05.7]} 31... Nh5 {[%clk
0:00:08.1]} 32. Rac1 {[%clk 0:00:04.5]} 32... Be3 {[%clk 0:00:07.1]} 33. Rc4
{[%clk 0:00:04.3]} 33... Bh6 {[%clk 0:00:06.6]} 34. Rh4 {[%clk 0:00:04.1]} 34...
Bg6 {[%clk 0:00:05.7]} 35. f4 {[%clk 0:00:04.1]} 35... Rg8 {[%clk 0:00:01.9]}
36. Rg1 {[%clk 0:00:04.6]} 36... Qd5+ {[%clk 0:00:01.2]} 37. Qg2 {[%clk
0:00:04.6]} 37... Qxg2+ {[%clk 0:00:01.5]} 38. Kxg2 {[%clk 0:00:05.5]} 38... Rf8
{[%clk 0:00:01.1]} 39. Kh2 {[%clk 0:00:06.1]} 39... Nxf4 {[%clk 0:00:01.1]} 40.
Rxh6 {[%clk 0:00:06.5]} 1-0

[Event "Early-Titled-Tuesday-Blitz-April-02-2024"]
[Site "Chess.com"]
[Date "2024.04.02"]
[Round "5"]
[White "javirec"]
[Black "LLariMarc"]
[Result "1-0"]
[WhiteElo "2283"]
[BlackElo "2408"]
[TimeControl "180+1"]
[EndTime "8:55:51 PDT"]
[Termination "javirec won by checkmate"]

1. e4 {[%clk 0:03:00.9]} 1... e6 {[%clk 0:02:59.7]} 2. d4 {[%clk 0:03:00.4]}
2... d5 {[%clk 0:03:00.6]} 3. Nc3 {[%clk 0:02:56.8]} 3... Bb4 {[%clk 0:03:00.5]}
4. e5 {[%clk 0:02:56.7]} 4... c5 {[%clk 0:03:00.2]} 5. Qg4 {[%clk 0:02:56.8]}
5... Ne7 {[%clk 0:02:06.4]} 6. dxc5 {[%clk 0:02:56.5]} 6... Bxc3+ {[%clk
0:02:01.2]} 7. bxc3 {[%clk 0:02:57.4]} 7... O-O {[%clk 0:02:01]} 8. Bd3 {[%clk
0:02:56.4]} 8... Nbc6 {[%clk 0:02:00.5]} 9. Nf3 {[%clk 0:02:55.9]} 9... Ng6
{[%clk 0:02:00.4]} 10. Qh5 {[%clk 0:02:51]} 10... Qa5 {[%clk 0:01:58.8]} 11. Bd2
{[%clk 0:02:50]} 11... Qxc5 {[%clk 0:01:58.3]} 12. O-O {[%clk 0:02:37.5]} 12...
Nce7 {[%clk 0:01:55.8]} 13. Nd4 {[%clk 0:02:24.5]} 13... b6 {[%clk 0:01:45.1]}
14. a4 {[%clk 0:01:41.7]} 14... Nc6 {[%clk 0:01:40.7]} 15. Be3 {[%clk
0:01:31.6]} 15... Nxd4 {[%clk 0:01:29.9]} 16. cxd4 {[%clk 0:01:25.7]} 16... Qa5
{[%clk 0:01:29.2]} 17. f4 {[%clk 0:01:22.5]} 17... Ba6 {[%clk 0:01:29]} 18. f5
{[%clk 0:01:14.8]} 18... Bxd3 {[%clk 0:01:22]} 19. cxd3 {[%clk 0:01:15.7]} 19...
exf5 {[%clk 0:01:15.6]} 20. Rxf5 {[%clk 0:01:08.7]} 20... Qc3 {[%clk 0:01:13.5]}
21. Raf1 {[%clk 0:01:04.9]} 21... Qxd3 {[%clk 0:01:13.2]} 22. R5f3 {[%clk
0:01:02.7]} 22... Qc2 {[%clk 0:01:11.5]} 23. Rh3 {[%clk 0:01:00.1]} 23... Nh8
{[%clk 0:01:08.6]} 24. Rf5 {[%clk 0:00:40]} 24... h6 {[%clk 0:00:50.7]} 25. Bxh6
{[%clk 0:00:38.8]} 25... g6 {[%clk 0:00:50.5]} 26. Qh4 {[%clk 0:00:20.1]} 26...
gxf5 {[%clk 0:00:08.9]} 27. Qf6 {[%clk 0:00:12.2]} 27... Qd1+ {[%clk 0:00:08.1]}
28. Kf2 {[%clk 0:00:10.5]} 28... Qxd4+ {[%clk 0:00:08]} 29. Re3 {[%clk
0:00:05.7]} 29... Qd2+ {[%clk 0:00:04.3]} 30. Kf1 {[%clk 0:00:02.5]} 30... Qd1+
{[%clk 0:00:04.3]} 31. Kf2 {[%clk 0:00:03.1]} 31... Qc2+ {[%clk 0:00:04.5]} 32.
Kf3 {[%clk 0:00:02]} 32... Qd1+ {[%clk 0:00:04.3]} 33. Kf2 {[%clk 0:00:02.6]}
33... Qg4 {[%clk 0:00:04.4]} 34. Rg3 {[%clk 0:00:02.3]} 34... Kh7 {[%clk
0:00:03.1]} 35. Rxg4 {[%clk 0:00:02.3]} 35... Rg8 {[%clk 0:00:03.7]} 36. Rg7+
{[%clk 0:00:02.1]} 36... Rxg7 {[%clk 0:00:03.3]} 37. Qxg7# {[%clk 0:00:03]} 1-0

[Event "Early-Titled-Tuesday-Blitz-April-02-2024"]
[Site "Chess.com"]
[Date "2024.04.02"]
[Round "5"]
[White "falzehope0"]
[Black "MikeWizard"]
[Result "1-0"]
[WhiteElo "2382"]
[BlackElo "2176"]
[TimeControl "180+1"]
[EndTime "8:55:54 PDT"]
[Termination "falzehope0 won by resignation"]

1. d4 {[%clk 0:02:55.6]} 1... Nf6 {[%clk 0:02:56]} 2. e3 {[%clk 0:02:55.7]} 2...
g6 {[%clk 0:02:54.2]} 3. Bd3 {[%clk 0:02:55.7]} 3... Bg7 {[%clk 0:02:54]} 4. f4
{[%clk 0:02:55.6]} 4... d6 {[%clk 0:02:48.6]} 5. Nf3 {[%clk 0:02:55.5]} 5... Bg4
{[%clk 0:02:46.7]} 6. O-O {[%clk 0:02:54.8]} 6... Nbd7 {[%clk 0:02:44.9]} 7.
Nbd2 {[%clk 0:02:53.6]} 7... O-O {[%clk 0:02:43.8]} 8. Qe1 {[%clk 0:02:52.5]}
8... c5 {[%clk 0:02:33.6]} 9. c3 {[%clk 0:02:52.1]} 9... Qc7 {[%clk 0:02:31.8]}
10. Qh4 {[%clk 0:02:50.9]} 10... e5 {[%clk 0:02:27]} 11. fxe5 {[%clk 0:02:35.7]}
11... dxe5 {[%clk 0:02:26.4]} 12. h3 {[%clk 0:02:00.7]} 12... Bxf3 {[%clk
0:02:14.7]} 13. Nxf3 {[%clk 0:01:56.7]} 13... cxd4 {[%clk 0:02:12.6]} 14. cxd4
{[%clk 0:01:53.1]} 14... exd4 {[%clk 0:02:11]} 15. exd4 {[%clk 0:01:52.2]} 15...
Rae8 {[%clk 0:02:07.7]} 16. Bd2 {[%clk 0:01:34.7]} 16... Qb6 {[%clk 0:02:04]}
17. a3 {[%clk 0:01:31.6]} 17... Nd5 {[%clk 0:02:02]} 18. Ng5 {[%clk 0:01:27.8]}
18... Qxd4+ {[%clk 0:01:55.2]} 19. Qxd4 {[%clk 0:01:19.9]} 19... Bxd4+ {[%clk
0:01:54.6]} 20. Kh1 {[%clk 0:01:19.8]} 20... b6 {[%clk 0:01:39.1]} 21. Rab1
{[%clk 0:01:18.4]} 21... Be3 {[%clk 0:01:34]} 22. Bc1 {[%clk 0:01:12.2]} 22...
Bxc1 {[%clk 0:01:31.4]} 23. Rbxc1 {[%clk 0:01:10.5]} 23... Rc8 {[%clk
0:01:29.6]} 24. Nf3 {[%clk 0:01:09]} 24... Ne3 {[%clk 0:01:25]} 25. Rfe1 {[%clk
0:01:07.4]} 25... Rxc1 {[%clk 0:01:23.4]} 26. Rxc1 {[%clk 0:01:07.6]} 26... Nc5
{[%clk 0:01:23.5]} 27. Bb1 {[%clk 0:01:01.9]} 27... Rd8 {[%clk 0:01:21.2]} 28.
Kh2 {[%clk 0:00:57.9]} 28... Rd1 {[%clk 0:01:17.2]} 29. Rxd1 {[%clk 0:00:56.4]}
29... Nxd1 {[%clk 0:01:17.4]} 30. b4 {[%clk 0:00:55.3]} 30... Ne6 {[%clk
0:01:14.1]} 31. Ne5 {[%clk 0:00:51.8]} 31... Nc3 {[%clk 0:01:13.5]} 32. Bc2
{[%clk 0:00:48.6]} 32... Nd4 {[%clk 0:01:13.1]} 33. Bd3 {[%clk 0:00:43.1]} 33...
f6 {[%clk 0:01:11]} 34. Bc4+ {[%clk 0:00:40.7]} 34... Kg7 {[%clk 0:01:11.1]} 35.
Nd3 {[%clk 0:00:29.3]} 35... Ndb5 {[%clk 0:01:09.6]} 36. a4 {[%clk 0:00:27.2]}
36... Nd6 {[%clk 0:01:08.7]} 37. Bb3 {[%clk 0:00:26.6]} 37... Kf8 {[%clk
0:00:59.6]} 38. Kg3 {[%clk 0:00:24.5]} 38... Ke7 {[%clk 0:00:59.5]} 39. Kf3
{[%clk 0:00:24.4]} 39... Kd7 {[%clk 0:00:55.9]} 40. g4 {[%clk 0:00:23.2]} 40...
Kc6 {[%clk 0:00:53.4]} 41. Ke3 {[%clk 0:00:21.2]} 41... a6 {[%clk 0:00:44.4]}
42. Kd4 {[%clk 0:00:19.7]} 42... b5 {[%clk 0:00:43.7]} 43. Kxc3 {[%clk
0:00:19.3]} 43... bxa4 {[%clk 0:00:42.9]} 44. Bxa4+ {[%clk 0:00:19.6]} 44... Kd5
{[%clk 0:00:42.8]} 45. Bb3+ {[%clk 0:00:19]} 45... Ke4 {[%clk 0:00:42.7]} 46.
Bg8 {[%clk 0:00:19.9]} 46... h5 {[%clk 0:00:41.6]} 47. Nc5+ {[%clk 0:00:19.1]}
47... Kf3 {[%clk 0:00:39.9]} 48. gxh5 {[%clk 0:00:19]} 48... gxh5 {[%clk
0:00:40.1]} 49. Be6 {[%clk 0:00:16.7]} 49... Nb5+ {[%clk 0:00:37.1]} 50. Kd3
{[%clk 0:00:15.8]} 50... Nc7 {[%clk 0:00:35.5]} 51. Bc8 {[%clk 0:00:14.7]} 51...
Kg3 {[%clk 0:00:34.7]} 52. Kd4 {[%clk 0:00:10.2]} 52... h4 {[%clk 0:00:30.9]}
53. Ne4+ {[%clk 0:00:09.8]} 53... Kf4 {[%clk 0:00:28.4]} 54. Nxf6 {[%clk
0:00:10.7]} 54... Nb5+ {[%clk 0:00:27.5]} 55. Kc5 {[%clk 0:00:10.7]} 55... Nc7
{[%clk 0:00:26.8]} 56. Nd5+ {[%clk 0:00:10.8]} 56... Nxd5 {[%clk 0:00:25.8]} 57.
Kxd5 {[%clk 0:00:11.7]} 57... Ke3 {[%clk 0:00:25.1]} 58. Bxa6 {[%clk 0:00:11.1]}
1-0